Workbook

Sheet Sheet1
C9: Game | D9: 1 | E9: Game | F9: 2 | G9: Game | H9: 3 | I9: Game | J9: 4 | K9: Game | L9: 5 | M9: Game | N9: 6 | O9: Game | P9: 7 | Q9: Game | R9: 8 | S9: Game | T9: 9 | U9: Game | V9: 10 | W9: Game | X9: 11 | Y9: Game | Z9: 12 | AA9: Game | AB9: 13 | AC9: Game | AD9: 14 | AE9: Game | AF9: 15 | AG9: Game | AH9: 16 | AI9: Game | AJ9: 17 | AK9: Game | AL9: 18 | AM9: Game | AN9: 19 | AO9: Game | AP9: 20 | AQ9: Game | AR9: 21 | AS9: Game | AT9: 22 | AU9: Game | AV9: 23 | AW9: Game | AX9: 24 | AY9: Game | AZ9: 25 | BA9: Game | BB9: 26 | BC9: Game | BD9: 27 | BE9: Game | BF9: 28 | BG9: Game | BH9: 29 | BI9: Game | BJ9: 30 | BK9: Game | BL9: 31
C10: CelL | D10: Rag | E10: PJ | F10: cooba | G10: Quickz | H10: Jake | I10: Toni | J10: murat | K10: Krytical | L10: Violet | M10: Snooze | N10: Lahm | O10: Galana | P10: Nerd | Q10: Snake | R10: Trey | S10: Lahm | T10: murat | U10: Rag | V10: cooba | W10: Quickz | X10: Snake | Y10: Galana | Z10: Krytical | AA10: PJ | AB10: CelL | AC10: Jake | AD10: Trey | AE10: Snooze | AF10: Toni | AG10: Violet | AH10: Nerd | AI10: Galana | AJ10: Toni | AK10: murat | AL10: Nerd | AM10: cooba | AN10: Treylina | AO10: Quickz | AP10: CelL | AQ10: Snooze | AR10: Jake | AS10: Violet | AT10: PJ | AU10: murat | AV10: Quickz | AW10: cooba | AX10: Toni | AY10: PJ | AZ10: murat | BA10: Snooze | BB10: cooba | BC10: Violet | BD10: Jake | BE10: Snooze | BF10: PJ | BG10: Jake | BH10: PJ | BI10: Jake | BJ10: Violet | BK10: Jake | BL10: Violet
B11: cooba | C11: 12 | G11: 8 | I11: 10 | K11: 6 | M11: 12 | P11: 5 | T11: 10 | AE11: 20 | AH11: 10 | AK11: 10 | AP11: 10 | AQ11: 20
B12: murat | D12: 10 | E12: 20 | G12: 20 | L12: 15 | M12: 20 | O12: 15 | Q12: 10 | U12: 20 | W12: 20 | Y12: 15 | AA12: 15 | AD12: 15 | AF12: 15 | AG12: 15 | AJ12: 15 | AN12: 10 | AO12: 20 | AQ12: 20 | AT12: 10 | AX12: 15 | BB12: 10 | BC12: 20 | BH12: 20 | BJ12: 15 | BK12: 30
B13: QuickZ | D13: 10 | J13: 15 | L13: 5 | M13: 10 | P13: 5 | R13: 20 | T13: 20 | Y13: 10 | AB13: 5 | AC13: 10 | AE13: 20 | AG13: 10 | AJ13: 10 | AK13: 10 | AM13: 10 | AQ13: 10 | AT13: 20 | AW13: 10 | BD13: 10 | BE13: 10 | BG13: 10 | BI13: 20 | BK13: 30
B14: Galana | C14: 5 | E14: 8 | G14: 7 | J14: 5 | K14: 5 | M14: 20 | P14: 15 | R14: 20 | T14: 10 | U14: 10 | W14: 20 | AB14: 5 | AD14: 5 | AE14: 20 | AH14: 5 | AL14: 20 | AM14: 10 | AP14: 5 | AQ14: 15 | AS14: 10 | AU14: 5 | AW14: 10 | AZ14: 10 | BB14: 10 | BC14: 10 | BE14: 10 | BH14: 10 | BJ14: 10 | BK14: 30
B15: Violet | D15: 5 | E15: 7 | G15: 7 | I15: 10 | M15: 11 | R15: 10 | S15: 11 | U15: 15 | W15: 11 | Z15: 2 | AA15: 5 | AE15: 10 | AL15: 10 | AM15: 8 | AO15: 10 | AQ15: 11 | AV15: 11 | AX15: 7 | AZ15: 4 | BB15: 9 | BF15: 6 | BG15: 4
B16: Jake | D16: 10 | E16: 20 | J16: 20 | L16: 20 | M16: 20 | P16: 20 | R16: 20 | T16: 10 | U16: 20 | W16: 20 | Y16: 20 | AA16: 20 | AF16: 20 | AH16: 20 | AI16: 5 | AL16: 20 | AN16: 20 | AP16: 20 | AS16: 20 | AV16: 20 | AW16: 20 | AZ16: 20 | BB16: 20 | BF16: 20
B17: Trey | C17: 5 | F17: 2 | H17: 3 | I17: 3 | K17: 2 | N17: 3 | O17: 3 | T17: 3 | U17: 3 | X17: 3 | Z17: 3 | AB17: 3 | AH17: 3 | AJ17: 3 | AL17: 5
B18: Nerd | G18: 20 | I18: 20 | K18: 5 | M18: 20 | R18: 20 | T18: 5 | U18: 20 | W18: 20 | Y18: 20 | AB18: 5 | AD18: 20 | AE18: 20 | AN18: 10 | AP18: 10 | AQ18: 20 | AT18: 20 | AV18: 20 | AZ18: 20 | BA18: 20 | BE18: 10 | BK18: 30
B19: CelL | H19: 20 | J19: 20 | L19: 20 | N19: 20 | P19: 20 | Q19: 20 | S19: 20 | V19: 20 | X19: 20 | Z19: 20 | AC19: 20 | AF19: 20 | AG19: 20 | AI19: 20 | AL19: 20 | AM19: 20 | AR19: 20 | AS19: 20 | AV19: 20 | AW19: 20 | BA19: 20 | BD19: 20 | BF19: 20 | BH19: 20 | BI19: 20 | BL19: 30
B20: Ragnarok | I20: 5 | N20: 10 | P20: 5 | Y20: 15 | AB20: 10 | AC20: 10 | AF20: 5 | AG20: 10 | AI20: 10 | AK20: 20 | AM20: 20 | AO20: 15 | AR20: 5 | AS20: 15 | AU20: 20 | AW20: 20 | AZ20: 12 | BA20: 5 | BC20: 5 | BE20: 5 | BG20: 5 | BJ20: 5 | BL20: 15
B21: Krytical | M21: 20 | O21: 10 | AD21: 5 | AF21: 5 | AJ21: 5 | AP21: 5 | AX21: 20 | BB21: 10 | BC21: 20 | BF21: 5 | BG21: 10 | BJ21: 5
B22: Toni | M22: 10 | P22: 20 | R22: 10 | T22: 20 | W22: 20 | Y22: 10 | AQ22: 10 | AV22: 10
B23: Lahm | R23: 20 | U23: 20 | BE23: 20
B24: Snake | U24: 20 | W24: 10 | Z24: 10 | AJ24: 10 | AL24: 10 | AM24: 3 | AR24: 10 | AS24: 10 | AU24: 10 | AX24: 20
B25: Snooze | AC25: 5 | AY25: 10
B26: FawFuL | AN26: 20 | AO26: 20 | AQ26: 20 | AT26: 20 | AU26: 20 | AW26: 20 | AZ26: 20
B27: Ktos | BB27: 10 | BF27: 5 | BG27: 20 | BI27: 10 | BK27: 30
C29: =SUM(C11:C28)+SUM(C11:D28)*0.25 -> 36.25 | D29: =SUM(D11:D28)+SUM(C11:D28)*0.25 -> 49.25 | E29: =SUM(E11:E28)+SUM(E11:F28)*0.25 -> 69.25 | F29: =SUM(F11:F28)+SUM(E11:F28)*0.25 -> 16.25 | G29: =SUM(G11:G28)+SUM(G11:H28)*0.25 -> 83.25 | H29: =SUM(H11:H28)+SUM(G11:H28)*0.25 -> 44.25 | I29: =SUM(I11:I28)+SUM(I11:J28)*0.25 -> 75 | J29: =SUM(J11:J28)+SUM(I11:J28)*0.25 -> 87 | K29: =SUM(K11:K28)+SUM(K11:L28)*0.25 -> 37.5 | L29: =SUM(L11:L28)+SUM(K11:L28)*0.25 -> 79.5 | M29: =SUM(M11:M28)+SUM(M11:N28)*0.25 -> 187 | N29: =SUM(N11:N28)+SUM(M11:N28)*0.25 -> 77 | O29: =SUM(O11:O28)+SUM(O11:P28)*0.25 -> 57.5 | P29: =SUM(P11:P28)+SUM(O11:P28)*0.25 -> 119.5 | Q29: =SUM(Q11:Q28)+SUM(Q11:R28)*0.25 -> 67.5 | R29: =SUM(R11:R28)+SUM(Q11:R28)*0.25 -> 157.5 | S29: =SUM(S11:S28)+SUM(S11:T28)*0.25 -> 58.25 | T29: =SUM(T11:T28)+SUM(S11:T28)*0.25 -> 105.25 | U29: =SUM(U11:U28)+SUM(U11:V28)*0.25 -> 165 | V29: =SUM(V11:V28)+SUM(U11:V28)*0.25 -> 57 | W29: =SUM(W11:W28)+SUM(W11:X28)*0.25 -> 157 | X29: =SUM(X11:X28)+SUM(W11:X28)*0.25 -> 59 | Y29: =SUM(Y11:Y28)+SUM(Y11:Z28)*0.25 -> 121.25 | Z29: =SUM(Z11:Z28)+SUM(Y11:Z28)*0.25 -> 66.25 | AA29: =SUM(AA11:AA28)+SUM(AA11:AB28)*0.25 -> 57 | AB29: =SUM(AB11:AB28)+SUM(AA11:AB28)*0.25 -> 45 | AC29: =SUM(AC11:AC28)+SUM(AC11:AD28)*0.25 -> 67.5 | AD29: =SUM(AD11:AD28)+SUM(AC11:AD28)*0.25 -> 67.5 | AE29: =SUM(AE11:AE28)+SUM(AE11:AF28)*0.25 -> 128.75 | AF29: =SUM(AF11:AF28)+SUM(AE11:AF28)*0.25 -> 103.75 | AG29: =SUM(AG11:AG28)+SUM(AG11:AH28)*0.25 -> 78.25 | AH29: =SUM(AH11:AH28)+SUM(AG11:AH28)*0.25 -> 61.25 | AI29: =SUM(AI11:AI28)+SUM(AI11:AJ28)*0.25 -> 54.5 | AJ29: =SUM(AJ11:AJ28)+SUM(AI11:AJ28)*0.25 -> 62.5 | AK29: =SUM(AK11:AK28)+SUM(AK11:AL28)*0.25 -> 71.25 | AL29: =SUM(AL11:AL28)+SUM(AK11:AL28)*0.25 -> 116.25 | AM29: =SUM(AM11:AM28)+SUM(AM11:AN28)*0.25 -> 103.75 | AN29: =SUM(AN11:AN28)+SUM(AM11:AN28)*0.25 -> 92.75 | AO29: =SUM(AO11:AO28)+SUM(AO11:AP28)*0.25 -> 93.75 | AP29: =SUM(AP11:AP28)+SUM(AO11:AP28)*0.25 -> 78.75 | AQ29: =SUM(AQ11:AQ28)+SUM(AQ11:AR28)*0.25 -> 166.25 | AR29: =SUM(AR11:AR28)+SUM(AQ11:AR28)*0.25 -> 75.25 | AS29: =SUM(AS11:AS28)+SUM(AS11:AT28)*0.25 -> 111.25 | AT29: =SUM(AT11:AT28)+SUM(AS11:AT28)*0.25 -> 106.25 | AU29: =SUM(AU11:AU28)+SUM(AU11:AV28)*0.25 -> 89 | AV29: =SUM(AV11:AV28)+SUM(AU11:AV28)*0.25 -> 115 | AW29: =SUM(AW11:AW28)+SUM(AW11:AX28)*0.25 -> 140.5 | AX29: =SUM(AX11:AX28)+SUM(AW11:AX28)*0.25 -> 102.5 | AY29: =SUM(AY11:AY28)+SUM(AY11:AZ28)*0.25 -> 34 | AZ29: =SUM(AZ11:AZ28)+SUM(AY11:AZ28)*0.25 -> 110 | BA29: =SUM(BA11:BA28)+SUM(BA11:BB28)*0.25 -> 73.5 | BB29: =SUM(BB11:BB28)+SUM(BA11:BB28)*0.25 -> 97.5 | BC29: =SUM(BC11:BC28)+SUM(BC11:BD28)*0.25 -> 76.25 | BD29: =SUM(BD11:BD28)+SUM(BC11:BD28)*0.25 -> 51.25 | BE29: =SUM(BE11:BE28)+SUM(BE11:BF28)*0.25 -> 82.75 | BF29: =SUM(BF11:BF28)+SUM(BE11:BF28)*0.25 -> 83.75 | BG29: =SUM(BG11:BG28)+SUM(BG11:BH28)*0.25 -> 73.75 | BH29: =SUM(BH11:BH28)+SUM(BG11:BH28)*0.25 -> 74.75 | BI29: =SUM(BI11:BI28)+SUM(BI11:BJ28)*0.25 -> 71.25 | BJ29: =SUM(BJ11:BJ28)+SUM(BI11:BJ28)*0.25 -> 56.25 | BK29: =SUM(BK11:BK28)+SUM(BK11:BL28)*0.25 -> 198.75 | BL29: =SUM(BL11:BL28)+SUM(BK11:BL28)*0.25 -> 93.75
C30: =(C29+D29)/C29 -> 2.35862069 | D30: =(C29+D29)/D29 -> 1.736040609 | E30: =(E29+F29)/E29 -> 1.23465704 | F30: =(E29+F29)/F29 -> 5.261538462 | G30: =(G29+H29)/G29 -> 1.531531532 | H30: =(G29+H29)/H29 -> 2.881355932 | I30: =(I29+J29)/I29 -> 2.16 | J30: =(I29+J29)/J29 -> 1.862068966 | K30: =(K29+L29)/K29 -> 3.12 | L30: =(K29+L29)/L29 -> 1.471698113 | M30: =(M29+N29)/M29 -> 1.411764706 | N30: =(M29+N29)/N29 -> 3.428571429 | O30: =(O29+P29)/O29 -> 3.07826087 | P30: =(O29+P29)/P29 -> 1.481171548 | Q30: =(Q29+R29)/Q29 -> 3.333333333 | R30: =(Q29+R29)/R29 -> 1.428571429 | S30: =(S29+T29)/S29 -> 2.806866953 | T30: =(S29+T29)/T29 -> 1.553444181 | U30: =(U29+V29)/U29 -> 1.345454545 | V30: =(U29+V29)/V29 -> 3.894736842 | W30: =(W29+X29)/W29 -> 1.375796178 | X30: =(W29+X29)/X29 -> 3.661016949 | Y30: =(Y29+Z29)/Y29 -> 1.546391753 | Z30: =(Y29+Z29)/Z29 -> 2.830188679 | AA30: =(AA29+AB29)/AA29 -> 1.789473684 | AB30: =(AA29+AB29)/AB29 -> 2.266666667 | AC30: =(AC29+AD29)/AC29 -> 2 | AD30: =(AC29+AD29)/AD29 -> 2 | AE30: =(AE29+AF29)/AE29 -> 1.805825243 | AF30: =(AE29+AF29)/AF29 -> 2.240963855 | AG30: =(AG29+AH29)/AG29 -> 1.782747604 | AH30: =(AG29+AH29)/AH29 -> 2.27755102 | AI30: =(AI29+AJ29)/AI29 -> 2.146788991 | AJ30: =(AI29+AJ29)/AJ29 -> 1.872 | AK30: =(AK29+AL29)/AK29 -> 2.631578947 | AL30: =(AK29+AL29)/AL29 -> 1.612903226 | AM30: =(AM29+AN29)/AM29 -> 1.893975904 | AN30: =(AM29+AN29)/AN29 -> 2.118598383 | AO30: =(AO29+AP29)/AO29 -> 1.84 | AP30: =(AO29+AP29)/AP29 -> 2.19047619 | AQ30: =(AQ29+AR29)/AQ29 -> 1.452631579 | AR30: =(AQ29+AR29)/AR29 -> 3.209302326 | AS30: =(AS29+AT29)/AS29 -> 1.95505618 | AT30: =(AS29+AT29)/AT29 -> 2.047058824 | AU30: =(AU29+AV29)/AU29 -> 2.292134831 | AV30: =(AU29+AV29)/AV29 -> 1.773913043 | AW30: =(AW29+AX29)/AW29 -> 1.729537367 | AX30: =(AW29+AX29)/AX29 -> 2.370731707 | AY30: =(AY29+AZ29)/AY29 -> 4.235294118 | AZ30: =(AY29+AZ29)/AZ29 -> 1.309090909 | BA30: =(BA29+BB29)/BA29 -> 2.326530612 | BB30: =(BA29+BB29)/BB29 -> 1.753846154 | BC30: =(BC29+BD29)/BC29 -> 1.672131148 | BD30: =(BC29+BD29)/BD29 -> 2.487804878 | BE30: =(BE29+BF29)/BE29 -> 2.012084592 | BF30: =(BE29+BF29)/BF29 -> 1.988059701 | BG30: =(BG29+BH29)/BG29 -> 2.013559322 | BH30: =(BG29+BH29)/BH29 -> 1.986622074 | BI30: =(BI29+BJ29)/BI29 -> 1.789473684 | BJ30: =(BI29+BJ29)/BJ29 -> 2.266666667 | BK30: =(BK29+BL29)/BK29 -> 1.471698113 | BL30: =(BK29+BL29)/BL29 -> 3.12
C31: Game | D31: 1 | E31: Game | F31: 2 | G31: Game | H31: 3 | I31: Game | J31: 4 | K31: Game | L31: 5 | M31: Game | N31: 6 | O31: Game | P31: 7 | Q31: Game | R31: 8 | S31: Game | T31: 9 | U31: Game | V31: 10 | W31: Game | X31: 11 | Y31: Game | Z31: 12 | AA31: Game | AB31: 13 | AC31: Game | AD31: 14 | AE31: Game | AF31: 15 | AG31: Game | AH31: 16 | AI31: Game | AJ31: 17 | AK31: Game | AL31: 18 | AM31: Game | AN31: 19 | AO31: Game | AP31: 20 | AQ31: Game | AR31: 21 | AS31: Game | AT31: 22 | AU31: Game | AV31: 23 | AW31: Game | AX31: 24 | AY31: Game | AZ31: 25 | BA31: Game | BB31: 26 | BC31: Game | BD31: 27 | BE31: Game | BF31: 28 | BG31: Game | BH31: 29 | BI31: Game | BJ31: 30 | BK31: Game | BL31: 31
C32: CelL | D32: Rag | E32: PJ | F32: cooba | G32: Quickz | H32: Jake | I32: Toni | J32: murat | K32: Krytical | L32: Violet | M32: Snooze | N32: Lahm | O32: Galana | P32: Nerd | Q32: Snake | R32: Trey | S32: Lahm | T32: murat | U32: Rag | V32: cooba | W32: Quickz | X32: Snake | Y32: Galana | Z32: Krytical | AA32: PJ | AB32: CelL | AC32: Jake | AD32: Trey | AE32: Snooze | AF32: Toni | AG32: Violet | AH32: Nerd | AI32: Galana | AJ32: Toni | AK32: murat | AL32: Nerd | AM32: cooba | AN32: Treylina | AO32: Quickz | AP32: CelL | AQ32: Snooze | AR32: Jake | AS32: Violet | AT32: PJ | AU32: murat | AV32: Quickz | AW32: cooba | AX32: Toni | AY32: PJ | AZ32: murat | BA32: Snooze | BB32: cooba | BC32: Violet | BD32: Jake | BE32: Snooze | BF32: PJ | BG32: Jake | BH32: PJ | BI32: Jake | BJ32: Violet | BK32: Jake | BL32: Violet | BM32: TOTAL | BN32: Weighed
B33: cooba | C33: =(C11*C$30)-C11 -> 16.30344828 | D33: =D11*-1 -> 0 | E33: =(E11*E$30)-E11 -> 0 | F33: =F11*-1 -> 0 | G33: =G11*-1 -> -8 | H33: =(H11*H$30)-H11 -> 0 | I33: =(I11*I$30)-I11 -> 11.6 | J33: =J11*-1 -> 0 | K33: =K11*-1 -> -6 | L33: =(L11*L$30)-L11 -> 0 | M33: =(M11*M$30)-M11 -> 4.941176471 | N33: =N11*-1 -> 0 | O33: =O11*-1 -> 0 | P33: =(P11*P$30)-P11 -> 2.405857741 | Q33: =Q11*-1 -> 0 | R33: =(R11*R$30)-R11 -> 0 | S33: =S11*-1 -> 0 | T33: =(T11*T$30)-T11 -> 5.534441805 | U33: =U11*-1 -> 0 | V33: =(V11*V$30)-V11 -> 0 | W33: =(W11*W$30)-W11 -> 0 | X33: =X11*-1 -> 0 | Y33: =(Y11*Y$30)-Y11 -> 0 | Z33: =Z11*-1 -> 0 | AA33: =(AA11*AA$30)-AA11 -> 0 | AB33: =AB11*-1 -> 0 | AC33: =(AC11*AC$30)-AC11 -> 0 | AD33: =AD11*-1 -> 0 | AE33: =(AE11*AE$30)-AE11 -> 16.11650485 | AF33: =AF11*-1 -> 0 | AG33: =(AG11*AG$30)-AG11 -> 0 | AH33: =AH11*-1 -> -10 | AI33: =AI11*-1 -> 0 | AJ33: =(AJ11*AJ$30)-AJ11 -> 0 | AK33: =(AK11*AK$30)-AK11 -> 16.31578947 | AL33: =AL11*-1 -> 0 | AM33: =(AM11*AM$30)-AM11 -> 0 | AN33: =AN11*-1 -> 0 | AO33: =(AO11*AO$30)-AO11 -> 0 | AP33: =AP11*-1 -> -10 | AQ33: =AQ11*-1 -> -20 | AR33: =(AR11*AR$30)-AR11 -> 0 | AS33: =(AS11*AS$30)-AS11 -> 0 | AT33: =AT11*-1 -> 0 | AU33: =(AU11*AU$30)-AU11 -> 0 | AV33: =AV11*-1 -> 0 | AW33: =(AW11*AW$30)-AW11 -> 0 | AX33: =AX11*-1 -> 0 | AY33: =(AY11*AY$30)-AY11 -> 0 | AZ33: =AZ11*-1 -> 0 | BA33: =(BA11*BA$30)-BA11 -> 0 | BB33: =BB11*-1 -> 0 | BC33: =(BC11*BC$30)-BC11 -> 0 | BD33: =BD11*-1 -> 0 | BE33: =BE11*-1 -> 0 | BF33: =(BF11*BF$30)-BF11 -> 0 | BG33: =(BG11*BG$30)-BG11 -> 0 | BH33: =BH11*-1 -> 0 | BI33: =(BI11*BI$30)-BI11 -> 0 | BJ33: =BJ11*-1 -> 0 | BK33: =(BK11*BK$30)-BK11 -> 0 | BL33: =BL11*-1 -> 0 | BM33: =SUM(C33:BL33) -> 19.21721862 | BN33: 5 | BO33: cooba
B34: murat | C34: =(C12*C$30)-C12 -> 0 | D34: =D12*-1 -> -10 | E34: =(E12*E$30)-E12 -> 4.693140794 | F34: 0 | G34: =G12*-1 -> -20 | H34: =(H12*H$30)-H12 -> 0 | I34: 0 | J34: =J12*-1 -> 0 | K34: 0 | L34: =(L12*L$30)-L12 -> 7.075471698 | M34: 8.235294118 | N34: =N12*-1 -> 0 | O34: -15 | P34: =(P12*P$30)-P12 -> 0 | Q34: =Q12*-1 -> -10 | R34: =(R12*R$30)-R12 -> 0 | S34: =S12*-1 -> 0 | T34: =(T12*T$30)-T12 -> 0 | U34: =U12*-1 -> -20 | V34: =(V12*V$30)-V12 -> 0 | W34: 7.515923567 | X34: =X12*-1 -> 0 | Y34: =(Y12*Y$30)-Y12 -> 8.195876289 | Z34: =Z12*-1 -> 0 | AA34: =(AA12*AA$30)-AA12 -> 11.84210526 | AB34: =AB12*-1 -> 0 | AC34: =(AC12*AC$30)-AC12 -> 0 | AD34: =AD12*-1 -> -15 | AE34: =(AE12*AE$30)-AE12 -> 0 | AF34: =AF12*-1 -> -15 | AG34: =(AG12*AG$30)-AG12 -> 11.74121406 | AH34: =AH12*-1 -> 0 | AI34: 0 | AJ34: =(AJ12*AJ$30)-AJ12 -> 13.08 | AK34: 0 | AL34: =AL12*-1 -> 0 | AM34: =(AM12*AM$30)-AM12 -> 0 | AN34: =AN12*-1 -> -10 | AO34: =(AO12*AO$30)-AO12 -> 16.8 | AP34: =AP12*-1 -> 0 | AQ34: -20 | AR34: =(AR12*AR$30)-AR12 -> 0 | AS34: 0 | AT34: =AT12*-1 -> -10 | AU34: =(AU12*AU$30)-AU12 -> 0 | AV34: =AV12*-1 -> 0 | AW34: =(AW12*AW$30)-AW12 -> 0 | AX34: =AX12*-1 -> -15 | AY34: =(AY12*AY$30)-AY12 -> 0 | AZ34: =AZ12*-1 -> 0 | BA34: =(BA12*BA$30)-BA12 -> 0 | BB34: =BB12*-1 -> -10 | BC34: =(BC12*BC$30)-BC12 -> 13.44262295 | BD34: =BD12*-1 -> 0 | BE34: 0 | BF34: =(BF12*BF$30)-BF12 -> 0 | BG34: 0 | BH34: =BH12*-1 -> -20 | BI34: =(BI12*BI$30)-BI12 -> 0 | BJ34: =BJ12*-1 -> -15 | BK34: =(BK12*BK$30)-BK12 -> 14.1509434 | BL34: =BL12*-1 -> 0 | BM34: =SUM(C34:BL34) -> -88.22740787 | BN34: -25 | BO34: murat
B35: QuickZ | C35: 0 | D35: -10 | E35: =(E13*E$30)-E13 -> 0 | F35: 0 | G35: =G13*-1 -> 0 | H35: 0 | I35: 0 | J35: -15 | K35: 0 | L35: =(L13*L$30)-L13 -> 2.358490566 | M35: 4.117647059 | N35: 0 | O35: 0 | P35: =(P13*P$30)-P13 -> 2.405857741 | Q35: 0 | R35: =(R13*R$30)-R13 -> 8.571428571 | S35: 0 | T35: =(T13*T$30)-T13 -> 11.06888361 | U35: 0 | V35: =(V13*V$30)-V13 -> 0 | W35: 0 | X35: 0 | Y35: =(Y13*Y$30)-Y13 -> 5.463917526 | Z35: 0 | AA35: =(AA13*AA$30)-AA13 -> 0 | AB35: -5 | AC35: =(AC13*AC$30)-AC13 -> 10 | AD35: 0 | AE35: =(AE13*AE$30)-AE13 -> 16.11650485 | AF35: 0 | AG35: =(AG13*AG$30)-AG13 -> 7.827476038 | AH35: 0 | AI35: 0 | AJ35: =(AJ13*AJ$30)-AJ13 -> 8.72 | AK35: 16.31578947 | AL35: 0 | AM35: =(AM13*AM$30)-AM13 -> 8.939759036 | AN35: 0 | AO35: =(AO13*AO$30)-AO13 -> 0 | AP35: 0 | AQ35: -10 | AR35: =(AR13*AR$30)-AR13 -> 0 | AS35: 0 | AT35: -20 | AU35: =(AU13*AU$30)-AU13 -> 0 | AV35: 0 | AW35: =(AW13*AW$30)-AW13 -> 7.295373665 | AX35: 0 | AY35: =(AY13*AY$30)-AY13 -> 0 | AZ35: 0 | BA35: =(BA13*BA$30)-BA13 -> 0 | BB35: 0 | BC35: =(BC13*BC$30)-BC13 -> 0 | BD35: -10 | BE35: -10 | BF35: =(BF13*BF$30)-BF13 -> 0 | BG35: 10.13559322 | BH35: 0 | BI35: =(BI13*BI$30)-BI13 -> 15.78947368 | BJ35: 0 | BK35: =(BK13*BK$30)-BK13 -> 14.1509434 | BL35: 0 | BM35: 69.27713844 | BN35: 20 | BO35: QuickZ
B36: Galana | C36: 6.793103448 | D36: 0 | E36: =(E14*E$30)-E14 -> 1.877256318 | F36: 0 | G36: =G14*-1 -> -7 | H36: 0 | I36: 0 | J36: -5 | K36: -5 | L36: =(L14*L$30)-L14 -> 0 | M36: 8.235294118 | N36: 0 | O36: 0 | P36: =(P14*P$30)-P14 -> 7.217573222 | Q36: 0 | R36: =(R14*R$30)-R14 -> 8.571428571 | S36: 0 | T36: =(T14*T$30)-T14 -> 5.534441805 | U36: -10 | V36: =(V14*V$30)-V14 -> 0 | W36: 7.515923567 | X36: 0 | Y36: =(Y14*Y$30)-Y14 -> 0 | Z36: 0 | AA36: =(AA14*AA$30)-AA14 -> 0 | AB36: -5 | AC36: =(AC14*AC$30)-AC14 -> 0 | AD36: -5 | AE36: =(AE14*AE$30)-AE14 -> 16.11650485 | AF36: 0 | AG36: =(AG14*AG$30)-AG14 -> 0 | AH36: -5 | AI36: 0 | AJ36: =(AJ14*AJ$30)-AJ14 -> 0 | AK36: 0 | AL36: -20 | AM36: =(AM14*AM$30)-AM14 -> 8.939759036 | AN36: 0 | AO36: =(AO14*AO$30)-AO14 -> 0 | AP36: -5 | AQ36: -15 | AR36: =(AR14*AR$30)-AR14 -> 0 | AS36: 9.550561798 | AT36: 0 | AU36: =(AU14*AU$30)-AU14 -> 6.460674157 | AV36: 0 | AW36: =(AW14*AW$30)-AW14 -> 7.295373665 | AX36: 0 | AY36: =(AY14*AY$30)-AY14 -> 0 | AZ36: -10 | BA36: =(BA14*BA$30)-BA14 -> 0 | BB36: -10 | BC36: =(BC14*BC$30)-BC14 -> 6.721311475 | BD36: 0 | BE36: -10 | BF36: =(BF14*BF$30)-BF14 -> 0 | BG36: 0 | BH36: -10 | BI36: =(BI14*BI$30)-BI14 -> 0 | BJ36: -10 | BK36: =(BK14*BK$30)-BK14 -> 14.1509434 | BL36: 0 | BM36: -17.01985057 | BN36: -5 | BO36: Galana
B37: Violet | C37: 0 | D37: -5 | E37: =(E15*E$30)-E15 -> 1.642599278 | F37: 0 | G37: =G15*-1 -> -7 | H37: 0 | I37: 11.6 | J37: 0 | K37: 0 | L37: =(L15*L$30)-L15 -> 0 | M37: 4.529411765 | N37: 0 | O37: 0 | P37: =(P15*P$30)-P15 -> 0 | Q37: 0 | R37: =(R15*R$30)-R15 -> 4.285714286 | S37: -11 | T37: =(T15*T$30)-T15 -> 0 | U37: -15 | V37: =(V15*V$30)-V15 -> 0 | W37: 4.133757962 | X37: 0 | Y37: =(Y15*Y$30)-Y15 -> 0 | Z37: -2 | AA37: =(AA15*AA$30)-AA15 -> 3.947368421 | AB37: 0 | AC37: =(AC15*AC$30)-AC15 -> 0 | AD37: 0 | AE37: =(AE15*AE$30)-AE15 -> 8.058252427 | AF37: 0 | AG37: =(AG15*AG$30)-AG15 -> 0 | AH37: 0 | AI37: 0 | AJ37: =(AJ15*AJ$30)-AJ15 -> 0 | AK37: 0 | AL37: -10 | AM37: =(AM15*AM$30)-AM15 -> 7.151807229 | AN37: 0 | AO37: =(AO15*AO$30)-AO15 -> 8.4 | AP37: 0 | AQ37: -11 | AR37: =(AR15*AR$30)-AR15 -> 0 | AS37: 0 | AT37: 0 | AU37: =(AU15*AU$30)-AU15 -> 0 | AV37: -11 | AW37: =(AW15*AW$30)-AW15 -> 0 | AX37: -7 | AY37: =(AY15*AY$30)-AY15 -> 0 | AZ37: -4 | BA37: =(BA15*BA$30)-BA15 -> 0 | BB37: -9 | BC37: =(BC15*BC$30)-BC15 -> 0 | BD37: 0 | BE37: 0 | BF37: =(BF15*BF$30)-BF15 -> 5.928358209 | BG37: 4.054237288 | BH37: 0 | BI37: =(BI15*BI$30)-BI15 -> 0 | BJ37: 0 | BK37: =(BK15*BK$30)-BK15 -> 0 | BL37: 0 | BM37: -28.26849314 | BN37: -8 | BO37: Violet
B38: Jake | C38: 0 | D38: -10 | E38: =(E16*E$30)-E16 -> 4.693140794 | F38: 0 | G38: =G16*-1 -> 0 | H38: 0 | I38: 0 | J38: -20 | K38: 0 | L38: =(L16*L$30)-L16 -> 9.433962264 | M38: 8.235294118 | N38: 0 | O38: 0 | P38: =(P16*P$30)-P16 -> 9.623430962 | Q38: 0 | R38: =(R16*R$30)-R16 -> 8.571428571 | S38: 0 | T38: =(T16*T$30)-T16 -> 5.534441805 | U38: -20 | V38: =(V16*V$30)-V16 -> 0 | W38: 7.515923567 | X38: 0 | Y38: =(Y16*Y$30)-Y16 -> 10.92783505 | Z38: 0 | AA38: =(AA16*AA$30)-AA16 -> 15.78947368 | AB38: 0 | AC38: =(AC16*AC$30)-AC16 -> 0 | AD38: 0 | AE38: =(AE16*AE$30)-AE16 -> 0 | AF38: -20 | AG38: =(AG16*AG$30)-AG16 -> 0 | AH38: -20 | AI38: -5 | AJ38: =(AJ16*AJ$30)-AJ16 -> 0 | AK38: 0 | AL38: -20 | AM38: =(AM16*AM$30)-AM16 -> 0 | AN38: -20 | AO38: =(AO16*AO$30)-AO16 -> 0 | AP38: -20 | AQ38: 0 | AR38: =(AR16*AR$30)-AR16 -> 0 | AS38: 19.1011236 | AT38: 0 | AU38: =(AU16*AU$30)-AU16 -> 0 | AV38: -20 | AW38: =(AW16*AW$30)-AW16 -> 14.59074733 | AX38: 0 | AY38: =(AY16*AY$30)-AY16 -> 0 | AZ38: -20 | BA38: =(BA16*BA$30)-BA16 -> 0 | BB38: -20 | BC38: =(BC16*BC$30)-BC16 -> 0 | BD38: 0 | BE38: 0 | BF38: =(BF16*BF$30)-BF16 -> 19.76119403 | BG38: 0 | BH38: 0 | BI38: =(BI16*BI$30)-BI16 -> 0 | BJ38: 0 | BK38: =(BK16*BK$30)-BK16 -> 0 | BL38: 0 | BM38: -81.22200423 | BN38: -23 | BO38: Jake
B39: Trey | C39: 6.793103448 | D39: 0 | E39: =(E17*E$30)-E17 -> 0 | F39: -2 | G39: =G17*-1 -> 0 | H39: 5.644067797 | I39: 3.48 | J39: 0 | K39: -2 | L39: =(L17*L$30)-L17 -> 0 | M39: 0 | N39: -3 | O39: -3 | P39: =(P17*P$30)-P17 -> 0 | Q39: 0 | R39: =(R17*R$30)-R17 -> 0 | S39: 0 | T39: =(T17*T$30)-T17 -> 1.660332542 | U39: -3 | V39: =(V17*V$30)-V17 -> 0 | W39: 0 | X39: -3 | Y39: =(Y17*Y$30)-Y17 -> 0 | Z39: -3 | AA39: =(AA17*AA$30)-AA17 -> 0 | AB39: -3 | AC39: =(AC17*AC$30)-AC17 -> 0 | AD39: 0 | AE39: =(AE17*AE$30)-AE17 -> 0 | AF39: 0 | AG39: =(AG17*AG$30)-AG17 -> 0 | AH39: -3 | AI39: 0 | AJ39: =(AJ17*AJ$30)-AJ17 -> 2.616 | AK39: 0 | AL39: -5 | AM39: =(AM17*AM$30)-AM17 -> 0 | AN39: 0 | AO39: =(AO17*AO$30)-AO17 -> 0 | AP39: 0 | AQ39: 0 | AR39: =(AR17*AR$30)-AR17 -> 0 | AS39: 0 | AT39: 0 | AU39: =(AU17*AU$30)-AU17 -> 0 | AV39: 0 | AW39: =(AW17*AW$30)-AW17 -> 0 | AX39: 0 | AY39: =(AY17*AY$30)-AY17 -> 0 | AZ39: 0 | BA39: =(BA17*BA$30)-BA17 -> 0 | BB39: 0 | BC39: =(BC17*BC$30)-BC17 -> 0 | BD39: 0 | BE39: 0 | BF39: =(BF17*BF$30)-BF17 -> 0 | BG39: 0 | BH39: 0 | BI39: =(BI17*BI$30)-BI17 -> 0 | BJ39: 0 | BK39: =(BK17*BK$30)-BK17 -> 0 | BL39: 0 | BM39: -9.806496214 | BN39: -3 | BO39: Trey
B40: Nerd | C40: 0 | D40: 0 | E40: =(E18*E$30)-E18 -> 0 | F40: 0 | G40: =G18*-1 -> -20 | H40: 0 | I40: 23.2 | J40: 0 | K40: -5 | L40: =(L18*L$30)-L18 -> 0 | M40: 8.235294118 | N40: 0 | O40: 0 | P40: =(P18*P$30)-P18 -> 0 | Q40: 0 | R40: =(R18*R$30)-R18 -> 8.571428571 | S40: 0 | T40: =(T18*T$30)-T18 -> 2.767220903 | U40: -20 | V40: =(V18*V$30)-V18 -> 0 | W40: 7.515923567 | X40: 0 | Y40: =(Y18*Y$30)-Y18 -> 10.92783505 | Z40: 0 | AA40: =(AA18*AA$30)-AA18 -> 0 | AB40: -5 | AC40: =(AC18*AC$30)-AC18 -> 0 | AD40: -20 | AE40: =(AE18*AE$30)-AE18 -> 16.11650485 | AF40: 0 | AG40: =(AG18*AG$30)-AG18 -> 0 | AH40: 0 | AI40: 0 | AJ40: =(AJ18*AJ$30)-AJ18 -> 0 | AK40: 0 | AL40: 0 | AM40: =(AM18*AM$30)-AM18 -> 0 | AN40: -10 | AO40: =(AO18*AO$30)-AO18 -> 0 | AP40: -10 | AQ40: -20 | AR40: =(AR18*AR$30)-AR18 -> 0 | AS40: 0 | AT40: -20 | AU40: =(AU18*AU$30)-AU18 -> 0 | AV40: -20 | AW40: =(AW18*AW$30)-AW18 -> 0 | AX40: 0 | AY40: =(AY18*AY$30)-AY18 -> 0 | AZ40: -20 | BA40: =(BA18*BA$30)-BA18 -> 26.53061224 | BB40: 0 | BC40: =(BC18*BC$30)-BC18 -> 0 | BD40: 0 | BE40: -10 | BF40: =(BF18*BF$30)-BF18 -> 0 | BG40: 0 | BH40: 0 | BI40: =(BI18*BI$30)-BI18 -> 0 | BJ40: 0 | BK40: =(BK18*BK$30)-BK18 -> 14.1509434 | BL40: 0 | BM40: -61.98423729 | BN40: -18 | BO40: Nerd
B41: CelL | C41: 0 | D41: 0 | E41: =(E19*E$30)-E19 -> 0 | F41: 0 | G41: =G19*-1 -> 0 | H41: 37.62711864 | I41: 0 | J41: -20 | K41: 0 | L41: =(L19*L$30)-L19 -> 9.433962264 | M41: 0 | N41: -20 | O41: 0 | P41: =(P19*P$30)-P19 -> 9.623430962 | Q41: -20 | R41: =(R19*R$30)-R19 -> 0 | S41: -20 | T41: =(T19*T$30)-T19 -> 0 | U41: 0 | V41: =(V19*V$30)-V19 -> 57.89473684 | W41: 0 | X41: -20 | Y41: =(Y19*Y$30)-Y19 -> 0 | Z41: -20 | AA41: =(AA19*AA$30)-AA19 -> 0 | AB41: 0 | AC41: =(AC19*AC$30)-AC19 -> 20 | AD41: 0 | AE41: =(AE19*AE$30)-AE19 -> 0 | AF41: -20 | AG41: =(AG19*AG$30)-AG19 -> 15.65495208 | AH41: 0 | AI41: -20 | AJ41: =(AJ19*AJ$30)-AJ19 -> 0 | AK41: 0 | AL41: -20 | AM41: =(AM19*AM$30)-AM19 -> 17.87951807 | AN41: 0 | AO41: =(AO19*AO$30)-AO19 -> 0 | AP41: 0 | AQ41: 0 | AR41: =(AR19*AR$30)-AR19 -> 44.18604651 | AS41: 19.1011236 | AT41: 0 | AU41: =(AU19*AU$30)-AU19 -> 0 | AV41: -20 | AW41: =(AW19*AW$30)-AW19 -> 14.59074733 | AX41: 0 | AY41: =(AY19*AY$30)-AY19 -> 0 | AZ41: 0 | BA41: =(BA19*BA$30)-BA19 -> 26.53061224 | BB41: 0 | BC41: =(BC19*BC$30)-BC19 -> 0 | BD41: -20 | BE41: 0 | BF41: =(BF19*BF$30)-BF19 -> 19.76119403 | BG41: 0 | BH41: -20 | BI41: =(BI19*BI$30)-BI19 -> 15.78947368 | BJ41: 0 | BK41: =(BK19*BK$30)-BK19 -> 0 | BL41: -30 | BM41: 38.07291626 | BN41: 11 | BO41: CelL
B42: Ragnarok | C42: 0 | D42: 0 | E42: =(E20*E$30)-E20 -> 0 | F42: 0 | G42: =G20*-1 -> 0 | H42: 0 | I42: 5.8 | J42: 0 | K42: 0 | L42: =(L20*L$30)-L20 -> 0 | M42: 0 | N42: -10 | O42: 0 | P42: =(P20*P$30)-P20 -> 2.405857741 | Q42: 0 | R42: =(R20*R$30)-R20 -> 0 | S42: 0 | T42: =(T20*T$30)-T20 -> 0 | U42: 0 | V42: =(V20*V$30)-V20 -> 0 | W42: 0 | X42: 0 | Y42: =(Y20*Y$30)-Y20 -> 8.195876289 | Z42: 0 | AA42: =(AA20*AA$30)-AA20 -> 0 | AB42: -10 | AC42: =(AC20*AC$30)-AC20 -> 10 | AD42: 0 | AE42: =(AE20*AE$30)-AE20 -> 0 | AF42: -5 | AG42: =(AG20*AG$30)-AG20 -> 7.827476038 | AH42: 0 | AI42: -10 | AJ42: =(AJ20*AJ$30)-AJ20 -> 0 | AK42: 32.63157895 | AL42: 0 | AM42: =(AM20*AM$30)-AM20 -> 17.87951807 | AN42: 0 | AO42: =(AO20*AO$30)-AO20 -> 12.6 | AP42: 0 | AQ42: 0 | AR42: =(AR20*AR$30)-AR20 -> 11.04651163 | AS42: 14.3258427 | AT42: 0 | AU42: =(AU20*AU$30)-AU20 -> 25.84269663 | AV42: 0 | AW42: =(AW20*AW$30)-AW20 -> 14.59074733 | AX42: 0 | AY42: =(AY20*AY$30)-AY20 -> 0 | AZ42: -12 | BA42: =(BA20*BA$30)-BA20 -> 6.632653061 | BB42: 0 | BC42: =(BC20*BC$30)-BC20 -> 3.360655738 | BD42: 0 | BE42: -5 | BF42: =(BF20*BF$30)-BF20 -> 0 | BG42: 5.06779661 | BH42: 0 | BI42: =(BI20*BI$30)-BI20 -> 0 | BJ42: -5 | BK42: =(BK20*BK$30)-BK20 -> 0 | BL42: -15 | BM42: 106.2072108 | BN42: 30 | BO42: Ragnarok
B43: Krytical | C43: 0 | D43: 0 | E43: =(E21*E$30)-E21 -> 0 | F43: 0 | G43: =G21*-1 -> 0 | H43: 0 | I43: 0 | J43: 0 | K43: 0 | L43: =(L21*L$30)-L21 -> 0 | M43: 8.235294118 | N43: 0 | O43: -10 | P43: =(P21*P$30)-P21 -> 0 | Q43: 0 | R43: =(R21*R$30)-R21 -> 0 | S43: 0 | T43: =(T21*T$30)-T21 -> 0 | U43: 0 | V43: =(V21*V$30)-V21 -> 0 | W43: 0 | X43: 0 | Y43: =(Y21*Y$30)-Y21 -> 0 | Z43: 0 | AA43: =(AA21*AA$30)-AA21 -> 0 | AB43: 0 | AC43: =(AC21*AC$30)-AC21 -> 0 | AD43: -5 | AE43: =(AE21*AE$30)-AE21 -> 0 | AF43: -5 | AG43: =(AG21*AG$30)-AG21 -> 0 | AH43: 0 | AI43: 0 | AJ43: =(AJ21*AJ$30)-AJ21 -> 4.36 | AK43: 0 | AL43: 0 | AM43: =(AM21*AM$30)-AM21 -> 0 | AN43: 0 | AO43: =(AO21*AO$30)-AO21 -> 0 | AP43: -5 | AQ43: 0 | AR43: =(AR21*AR$30)-AR21 -> 0 | AS43: 0 | AT43: 0 | AU43: =(AU21*AU$30)-AU21 -> 0 | AV43: 0 | AW43: =(AW21*AW$30)-AW21 -> 0 | AX43: -20 | AY43: =(AY21*AY$30)-AY21 -> 0 | AZ43: 0 | BA43: =(BA21*BA$30)-BA21 -> 0 | BB43: -10 | BC43: =(BC21*BC$30)-BC21 -> 13.44262295 | BD43: 0 | BE43: 0 | BF43: =(BF21*BF$30)-BF21 -> 4.940298507 | BG43: 10.13559322 | BH43: 0 | BI43: =(BI21*BI$30)-BI21 -> 0 | BJ43: -5 | BK43: =(BK21*BK$30)-BK21 -> 0 | BL43: 0 | BM43: -18.8861912 | BN43: -5 | BO43: Krytical
B44: Toni | C44: 0 | D44: 0 | E44: =(E22*E$30)-E22 -> 0 | F44: 0 | G44: =G22*-1 -> 0 | H44: 0 | I44: 0 | J44: 0 | K44: 0 | L44: =(L22*L$30)-L22 -> 0 | M44: 4.117647059 | N44: 0 | O44: 0 | P44: =(P22*P$30)-P22 -> 9.623430962 | Q44: 0 | R44: =(R22*R$30)-R22 -> 4.285714286 | S44: 0 | T44: =(T22*T$30)-T22 -> 11.06888361 | U44: 0 | V44: =(V22*V$30)-V22 -> 0 | W44: 7.515923567 | X44: 0 | Y44: =(Y22*Y$30)-Y22 -> 5.463917526 | Z44: 0 | AA44: =(AA22*AA$30)-AA22 -> 0 | AB44: 0 | AC44: =(AC22*AC$30)-AC22 -> 0 | AD44: 0 | AE44: =(AE22*AE$30)-AE22 -> 0 | AF44: 0 | AG44: =(AG22*AG$30)-AG22 -> 0 | AH44: 0 | AI44: 0 | AJ44: =(AJ22*AJ$30)-AJ22 -> 0 | AK44: 0 | AL44: 0 | AM44: =(AM22*AM$30)-AM22 -> 0 | AN44: 0 | AO44: =(AO22*AO$30)-AO22 -> 0 | AP44: 0 | AQ44: -10 | AR44: =(AR22*AR$30)-AR22 -> 0 | AS44: 0 | AT44: 0 | AU44: =(AU22*AU$30)-AU22 -> 0 | AV44: -10 | AW44: =(AW22*AW$30)-AW22 -> 0 | AX44: 0 | AY44: =(AY22*AY$30)-AY22 -> 0 | AZ44: 0 | BA44: =(BA22*BA$30)-BA22 -> 0 | BB44: 0 | BC44: =(BC22*BC$30)-BC22 -> 0 | BD44: 0 | BE44: 0 | BF44: =(BF22*BF$30)-BF22 -> 0 | BG44: 0 | BH44: 0 | BI44: =(BI22*BI$30)-BI22 -> 0 | BJ44: 0 | BK44: =(BK22*BK$30)-BK22 -> 0 | BL44: 0 | BM44: 22.07551701 | BN44: 6 | BO44: Toni
B45: Lahm | C45: 0 | D45: 0 | E45: =(E23*E$30)-E23 -> 0 | F45: 0 | G45: =G23*-1 -> 0 | H45: 0 | I45: 0 | J45: 0 | K45: 0 | L45: =(L23*L$30)-L23 -> 0 | M45: 0 | N45: 0 | O45: 0 | P45: =(P23*P$30)-P23 -> 0 | Q45: 0 | R45: =(R23*R$30)-R23 -> 8.571428571 | S45: 0 | T45: =(T23*T$30)-T23 -> 0 | U45: -20 | V45: =(V23*V$30)-V23 -> 0 | W45: 0 | X45: 0 | Y45: =(Y23*Y$30)-Y23 -> 0 | Z45: 0 | AA45: =(AA23*AA$30)-AA23 -> 0 | AB45: 0 | AC45: =(AC23*AC$30)-AC23 -> 0 | AD45: 0 | AE45: =(AE23*AE$30)-AE23 -> 0 | AF45: 0 | AG45: =(AG23*AG$30)-AG23 -> 0 | AH45: 0 | AI45: 0 | AJ45: =(AJ23*AJ$30)-AJ23 -> 0 | AK45: 0 | AL45: 0 | AM45: =(AM23*AM$30)-AM23 -> 0 | AN45: 0 | AO45: =(AO23*AO$30)-AO23 -> 0 | AP45: 0 | AQ45: 0 | AR45: =(AR23*AR$30)-AR23 -> 0 | AS45: 0 | AT45: 0 | AU45: =(AU23*AU$30)-AU23 -> 0 | AV45: 0 | AW45: =(AW23*AW$30)-AW23 -> 0 | AX45: 0 | AY45: =(AY23*AY$30)-AY23 -> 0 | AZ45: 0 | BA45: =(BA23*BA$30)-BA23 -> 0 | BB45: 0 | BC45: =(BC23*BC$30)-BC23 -> 0 | BD45: 0 | BE45: -20 | BF45: =(BF23*BF$30)-BF23 -> 0 | BG45: 0 | BH45: 0 | BI45: =(BI23*BI$30)-BI23 -> 0 | BJ45: 0 | BK45: =(BK23*BK$30)-BK23 -> 0 | BL45: 0 | BM45: -31.42857143 | BN45: -9 | BO45: Lahm
B46: Snake | C46: 0 | D46: 0 | E46: =(E24*E$30)-E24 -> 0 | F46: 0 | G46: =G24*-1 -> 0 | H46: 0 | I46: 0 | J46: 0 | K46: 0 | L46: =(L24*L$30)-L24 -> 0 | M46: 0 | N46: 0 | O46: 0 | P46: =(P24*P$30)-P24 -> 0 | Q46: 0 | R46: =(R24*R$30)-R24 -> 0 | S46: 0 | T46: =(T24*T$30)-T24 -> 0 | U46: -20 | V46: =(V24*V$30)-V24 -> 0 | W46: 3.757961783 | X46: 0 | Y46: =(Y24*Y$30)-Y24 -> 0 | Z46: -10 | AA46: =(AA24*AA$30)-AA24 -> 0 | AB46: 0 | AC46: =(AC24*AC$30)-AC24 -> 0 | AD46: 0 | AE46: =(AE24*AE$30)-AE24 -> 0 | AF46: 0 | AG46: =(AG24*AG$30)-AG24 -> 0 | AH46: 0 | AI46: 0 | AJ46: =(AJ24*AJ$30)-AJ24 -> 8.72 | AK46: 0 | AL46: -10 | AM46: =(AM24*AM$30)-AM24 -> 2.681927711 | AN46: 0 | AO46: =(AO24*AO$30)-AO24 -> 0 | AP46: 0 | AQ46: 0 | AR46: =(AR24*AR$30)-AR24 -> 22.09302326 | AS46: 9.550561798 | AT46: 0 | AU46: =(AU24*AU$30)-AU24 -> 12.92134831 | AV46: 0 | AW46: =(AW24*AW$30)-AW24 -> 0 | AX46: -20 | AY46: =(AY24*AY$30)-AY24 -> 0 | AZ46: 0 | BA46: =(BA24*BA$30)-BA24 -> 0 | BB46: 0 | BC46: =(BC24*BC$30)-BC24 -> 0 | BD46: 0 | BE46: 0 | BF46: =(BF24*BF$30)-BF24 -> 0 | BG46: 0 | BH46: 0 | BI46: =(BI24*BI$30)-BI24 -> 0 | BJ46: 0 | BK46: =(BK24*BK$30)-BK24 -> 0 | BL46: 0 | BM46: -0.2751771375 | BN46: 0 | BO46: Snake
B47: Snooze | C47: 0 | D47: 0 | E47: =(E25*E$30)-E25 -> 0 | F47: 0 | G47: =G25*-1 -> 0 | H47: 0 | I47: 0 | J47: 0 | K47: 0 | L47: =(L25*L$30)-L25 -> 0 | M47: 0 | N47: 0 | O47: 0 | P47: =(P25*P$30)-P25 -> 0 | Q47: 0 | R47: =(R25*R$30)-R25 -> 0 | S47: 0 | T47: =(T25*T$30)-T25 -> 0 | U47: 0 | V47: =(V25*V$30)-V25 -> 0 | W47: 0 | X47: 0 | Y47: =(Y25*Y$30)-Y25 -> 0 | Z47: 0 | AA47: =(AA25*AA$30)-AA25 -> 0 | AB47: 0 | AC47: =(AC25*AC$30)-AC25 -> 5 | AD47: 0 | AE47: =(AE25*AE$30)-AE25 -> 0 | AF47: 0 | AG47: =(AG25*AG$30)-AG25 -> 0 | AH47: 0 | AI47: 0 | AJ47: =(AJ25*AJ$30)-AJ25 -> 0 | AK47: 0 | AL47: 0 | AM47: =(AM25*AM$30)-AM25 -> 0 | AN47: 0 | AO47: =(AO25*AO$30)-AO25 -> 0 | AP47: 0 | AQ47: 0 | AR47: =(AR25*AR$30)-AR25 -> 0 | AS47: 0 | AT47: 0 | AU47: =(AU25*AU$30)-AU25 -> 0 | AV47: 0 | AW47: =(AW25*AW$30)-AW25 -> 0 | AX47: 0 | AY47: =(AY25*AY$30)-AY25 -> 32.35294118 | AZ47: 0 | BA47: =(BA25*BA$30)-BA25 -> 0 | BB47: 0 | BC47: =(BC25*BC$30)-BC25 -> 0 | BD47: 0 | BE47: 0 | BF47: =(BF25*BF$30)-BF25 -> 0 | BG47: 0 | BH47: 0 | BI47: =(BI25*BI$30)-BI25 -> 0 | BJ47: 0 | BK47: =(BK25*BK$30)-BK25 -> 0 | BL47: 0 | BM47: 37.35294118 | BN47: 11 | BO47: Snooze
B48: FawFuL | C48: 0 | D48: 0 | E48: =(E26*E$30)-E26 -> 0 | F48: 0 | G48: =G26*-1 -> 0 | H48: 0 | I48: 0 | J48: 0 | K48: 0 | L48: =(L26*L$30)-L26 -> 0 | M48: 0 | N48: 0 | O48: 0 | P48: =(P26*P$30)-P26 -> 0 | Q48: 0 | R48: =(R26*R$30)-R26 -> 0 | S48: 0 | T48: =(T26*T$30)-T26 -> 0 | U48: 0 | V48: =(V26*V$30)-V26 -> 0 | W48: 0 | X48: 0 | Y48: =(Y26*Y$30)-Y26 -> 0 | Z48: 0 | AA48: =(AA26*AA$30)-AA26 -> 0 | AB48: 0 | AC48: =(AC26*AC$30)-AC26 -> 0 | AD48: 0 | AE48: =(AE26*AE$30)-AE26 -> 0 | AF48: 0 | AG48: =(AG26*AG$30)-AG26 -> 0 | AH48: 0 | AI48: 0 | AJ48: =(AJ26*AJ$30)-AJ26 -> 0 | AK48: 0 | AL48: 0 | AM48: =(AM26*AM$30)-AM26 -> 0 | AN48: -20 | AO48: =(AO26*AO$30)-AO26 -> 16.8 | AP48: 0 | AQ48: -20 | AR48: =(AR26*AR$30)-AR26 -> 0 | AS48: 0 | AT48: -20 | AU48: =(AU26*AU$30)-AU26 -> 25.84269663 | AV48: 0 | AW48: =(AW26*AW$30)-AW26 -> 14.59074733 | AX48: 0 | AY48: =(AY26*AY$30)-AY26 -> 0 | AZ48: -20 | BA48: =(BA26*BA$30)-BA26 -> 0 | BB48: 0 | BC48: =(BC26*BC$30)-BC26 -> 0 | BD48: 0 | BE48: 0 | BF48: =(BF26*BF$30)-BF26 -> 0 | BG48: 0 | BH48: 0 | BI48: =(BI26*BI$30)-BI26 -> 0 | BJ48: 0 | BK48: =(BK26*BK$30)-BK26 -> 0 | BL48: 0 | BM48: -22.76655604 | BN48: -6 | BO48: FawFuL
B49: Ktos | C49: 0 | D49: 0 | E49: =(E27*E$30)-E27 -> 0 | F49: 0 | G49: =G27*-1 -> 0 | H49: 0 | I49: 0 | J49: 0 | K49: 0 | L49: =(L27*L$30)-L27 -> 0 | M49: 0 | N49: 0 | O49: 0 | P49: =(P27*P$30)-P27 -> 0 | Q49: 0 | R49: =(R27*R$30)-R27 -> 0 | S49: 0 | T49: =(T27*T$30)-T27 -> 0 | U49: 0 | V49: =(V27*V$30)-V27 -> 0 | W49: 0 | X49: 0 | Y49: =(Y27*Y$30)-Y27 -> 0 | Z49: 0 | AA49: =(AA27*AA$30)-AA27 -> 0 | AB49: 0 | AC49: =(AC27*AC$30)-AC27 -> 0 | AD49: 0 | AE49: =(AE27*AE$30)-AE27 -> 0 | AF49: 0 | AG49: =(AG27*AG$30)-AG27 -> 0 | AH49: 0 | AI49: 0 | AJ49: =(AJ27*AJ$30)-AJ27 -> 0 | AK49: 0 | AL49: 0 | AM49: =(AM27*AM$30)-AM27 -> 0 | AN49: 0 | AO49: =(AO27*AO$30)-AO27 -> 0 | AP49: 0 | AQ49: 0 | AR49: =(AR27*AR$30)-AR27 -> 0 | AS49: 0 | AT49: 0 | AU49: =(AU27*AU$30)-AU27 -> 0 | AV49: 0 | AW49: =(AW27*AW$30)-AW27 -> 0 | AX49: 0 | AY49: =(AY27*AY$30)-AY27 -> 0 | AZ49: 0 | BA49: =(BA27*BA$30)-BA27 -> 0 | BB49: -10 | BC49: =(BC27*BC$30)-BC27 -> 0 | BD49: 0 | BE49: 0 | BF49: =(BF27*BF$30)-BF27 -> 4.940298507 | BG49: 20.27118644 | BH49: 0 | BI49: =(BI27*BI$30)-BI27 -> 7.894736842 | BJ49: 0 | BK49: =(BK27*BK$30)-BK27 -> 14.1509434 | BL49: 0 | BM49: 37.25716519 | BN49: 11 | BO49: Ktos
C50: 0 | D50: 0 | E50: =(E28*E$30)-E28 -> 0 | F50: 0 | G50: =G28*-1 -> 0 | H50: 0 | I50: 0 | J50: 0 | K50: 0 | L50: =(L28*L$30)-L28 -> 0 | M50: 0 | N50: 0 | O50: 0 | P50: =(P28*P$30)-P28 -> 0 | Q50: 0 | R50: =(R28*R$30)-R28 -> 0 | S50: 0 | T50: =(T28*T$30)-T28 -> 0 | U50: 0 | V50: =(V28*V$30)-V28 -> 0 | W50: 0 | X50: 0 | Y50: =(Y28*Y$30)-Y28 -> 0 | Z50: 0 | AA50: =(AA28*AA$30)-AA28 -> 0 | AB50: 0 | AC50: =(AC28*AC$30)-AC28 -> 0 | AD50: 0 | AE50: =(AE28*AE$30)-AE28 -> 0 | AF50: 0 | AG50: =(AG28*AG$30)-AG28 -> 0 | AH50: 0 | AI50: 0 | AJ50: =(AJ28*AJ$30)-AJ28 -> 0 | AK50: 0 | AL50: 0 | AM50: =(AM28*AM$30)-AM28 -> 0 | AN50: 0 | AO50: =(AO28*AO$30)-AO28 -> 0 | AP50: 0 | AQ50: 0 | AR50: =(AR28*AR$30)-AR28 -> 0 | AS50: 0 | AT50: 0 | AU50: =(AU28*AU$30)-AU28 -> 0 | AV50: 0 | AW50: =(AW28*AW$30)-AW28 -> 0 | AX50: 0 | AY50: =(AY28*AY$30)-AY28 -> 0 | AZ50: 0 | BA50: =(BA28*BA$30)-BA28 -> 0 | BB50: 0 | BC50: =(BC28*BC$30)-BC28 -> 0 | BD50: 0 | BE50: 0 | BF50: =(BF28*BF$30)-BF28 -> 0 | BG50: 0 | BH50: 0 | BI50: =(BI28*BI$30)-BI28 -> 0 | BJ50: 0 | BK50: =(BK28*BK$30)-BK28 -> 0 | BL50: 0

Sheet Sheet2

Sheet Sheet3
